bitfinex-derivatives/quotes_ETHF0:USTF0_20240920
["timestamp","ask_amount","ask_price","bid_price","bid_amount"]
[1726796326971,3.18,2452.4,2452.3,4.68181878]
[1726796329778,3.18,2452.4,2452.3,4.27415878]
[1726796329971,3.58766,2452.4,2452.1,1.47405878]
[1726796330170,3.18,2452.2,2452.1,1.47405878]
[1726796330576,3.18,2452.2,2452.0,5.08687878]
[1726796332288,3.18,2452.2,2452.0,4.02052]
[1726796332670,3.18,2452.2,2452.0,0.405]
[1726796332873,3.58769,2452.2,2451.9,3.61553]
[1726796333080,3.18,2452.0,2451.9,3.61553]
[1726796333777,3.18,2452.0,2451.9,0.40773]
[1726796333986,3.18,2452.0,2451.9,3.2078]
[1726796334171,3.18,2452.0,2451.7,0.40777]
[1726796334376,1.204,2451.9,2451.7,0.40777]
[1726796335388,3.18,2451.8,2451.7,0.40777]
[1726796336374,0.8031,2451.9,2451.8,0.40776]
[1726796337183,0.3872,2451.9,2451.8,0.40776]
[1726796337386,4.3807,2452.2,2451.6,4.66375878]
[1726796337586,4.3807,2452.2,2451.9,0.40773]
[1726796339296,4.3807,2452.2,2452.0,0.40772]
[1726796339484,4.3807,2452.2,2451.7,4.27415878]
[1726796339883,4.3807,2452.2,2452.1,3.61551]
[1726796340082,4.3807,2452.2,2452.1,3.2078]
[1726796340591,4.3807,2452.2,2452.0,0.40771]
[1726796340790,4.3807,2452.2,2452.0,0.82001]
[1726796342081,4.3807,2452.2,2452.1,3.61551]
[1726796342389,4.3807,2452.2,2452.1,0.40771]
[1726796343390,4.3807,2452.2,2452.0,4.02782]
[1726796344091,4.3807,2452.2,2452.1,0.40771]
[1726796344293,4.3807,2452.2,2452.0,4.02781]
[1726796344796,4.3807,2452.2,2452.1,0.40771]
[1726796345490,4.3807,2452.2,2452.0,4.02782]
[1726796345893,4.3807,2452.2,2452.1,0.40771]
[1726796346590,4.3807,2452.2,2452.0,4.02781]
[1726796347598,4.3807,2452.2,2452.1,0.40771]
[1726796349292,4.3807,2452.2,2452.0,4.02782]
[1726796350193,4.3807,2452.2,2452.0,4.02781]
[1726796350795,4.3807,2452.2,2452.0,3.6201]
[1726796350993,4.3807,2452.2,2452.1,0.40771]
[1726796351196,4.3807,2452.2,2452.0,4.02782]
[1726796355299,4.3807,2452.2,2452.1,1.06635878]
[1726796355900,2.6707,2452.2,2452.1,1.06635878]
[1726796358606,2.6707,2452.2,2452.0,5.09417878]
[1726796359998,2.6707,2452.2,2452.1,1.06635878]
[1726796361812,2.6707,2452.2,2452.0,5.09417878]
[1726796362400,2.6707,2452.2,2452.0,4.02782]
[1726796366003,2.6707,2452.2,2452.0,0.82002]
[1726796370510,2.6707,2452.2,2452.1,2.96708243]
[1726796370712,2.6707,2452.2,2452.1,1.06635878]
[1726796371010,2.6707,2452.2,2452.1,2.96711317]
[1726796371310,2.6707,2452.2,2452.1,1.06635878]
[1726796372017,3.07839,2452.2,2452.1,1.06635878]
[1726796372200,3.07839,2452.2,2451.7,5.86896392]
[1726796372201,0.40776,2451.8,2451.7,4.80449835]
[1726796372401,1.87776,2451.8,2451.7,5.10920408]
[1726796372609,1.87776,2451.8,2451.7,3.2078]
[1726796372813,15.7756,2451.8,2451.4,1.59669835]
[1726796373119,0.40784,2451.4,2451.2,1.59669835]
[1726796373423,1.8718,2451.3,2451.1,0.4268]
[1726796373717,1.8718,2451.3,2451.0,1.59669835]
[1726796373718,0.80287,2451.2,2451.0,1.59669835]
[1726796373915,1.47,2451.1,2450.9,5.21240835]
[1726796374105,1.47,2451.1,2451.0,1.89795111]
[1726796374305,1.47,2451.1,2450.9,4.80449835]
[1726796375301,1.47,2451.1,2450.9,3.2078]
[1726796375907,3.98286,2451.2,2450.9,3.2078]
[1726796376316,3.575,2451.2,2450.9,3.2078]
[1726796377213,3.575,2451.2,2451.0,0.40788]
[1726796377607,3.575,2451.2,2451.1,0.40787]
[1726796377809,0.395,2451.2,2451.0,0.40788]
[1726796378715,0.395,2451.2,2451.1,0.40787]
[1726796379014,3.18,2451.4,2451.2,0.40784]
[1726796379208,0.4134,2451.6,2451.3,0.80043]
[1726796379405,0.4134,2451.6,2451.3,1.60973]
[1726796379907,0.4134,2451.6,2451.4,0.40782]
[1726796381320,0.4134,2451.6,2451.3,1.2019]
[1726796381321,0.4134,2451.6,2451.5,0.40781]
[1726796382218,0.4134,2451.6,2451.4,0.40781]
[1726796382611,3.5934,2451.6,2451.3,0.80043]
[1726796382914,4.0012,2451.6,2451.3,0.3926]
[1726796383110,0.4022,2451.5,2451.3,0.3926]
[1726796384417,3.18,2451.4,2451.2,3.2078]
[1726796385919,3.58783,2451.4,2451.2,3.2078]
[1726796386116,3.18,2451.4,2451.2,3.2078]
[1726796387409,3.18,2451.4,2451.2,3.61566]
[1726796387614,3.18,2451.4,2451.2,3.2078]
[1726796388014,3.18,2451.4,2451.2,3.61565]
[1726796388422,0.4134,2451.6,2451.2,3.2078]
[1726796388614,0.4134,2451.6,2451.4,0.40781]
[1726796389018,0.4134,2451.6,2451.5,0.4196]
[1726796389319,0.4134,2451.6,2451.5,0.82741]
[1726796389524,4.4926,2451.6,2451.5,0.82741]
[1726796390720,4.4926,2451.6,2451.5,0.4196]
[1726796392824,7.6726,2451.6,2451.5,0.4196]
[1726796393019,7.6726,2451.6,2451.4,0.40782]
[1726796393220,7.6726,2451.6,2451.2,0.3901]
[1726796393429,3.18,2451.3,2451.1,3.61567]
[1726796393619,0.4253,2451.2,2451.1,3.61567]
[1726796394322,0.4253,2451.2,2451.1,3.2078]
[1726796394526,0.4253,2451.2,2451.0,0.3901]
[1726796394724,0.3851,2451.1,2451.0,0.3901]
[1726796395525,3.5651,2451.1,2451.0,0.3901]
[1726796396229,0.3851,2451.1,2451.0,0.79799]
[1726796401031,3.18,2451.4,2451.2,0.40785]
[1726796401234,0.4111,2451.3,2451.1,0.40786]
[1726796401532,0.4111,2451.3,2451.0,0.3901]
[1726796401723,0.4111,2451.3,2451.1,0.40787]
[1726796402023,0.4111,2451.3,2451.0,0.79798]
[1726796402230,0.4111,2451.3,2451.1,0.40787]
[1726796402732,3.58786,2451.2,2451.0,0.3901]
[1726796403026,3.58786,2451.2,2451.0,0.79798]
[1726796403027,3.18,2451.2,2451.0,0.79798]
[1726796403235,0.4111,2451.3,2451.2,0.40786]
[1726796403736,0.4111,2451.3,2451.1,0.4259]
[1726796404335,0.4111,2451.3,2451.2,0.40786]
[1726796404637,0.4225,2451.4,2451.3,0.40784]
[1726796404838,0.4225,2451.4,2451.2,3.61564]
[1726796405334,0.4225,2451.4,2451.3,0.40784]
[1726796405727,0.4225,2451.4,2451.2,0.40785]
[1726796406036,0.4225,2451.4,2451.3,0.40784]
[1726796407538,3.6025,2451.4,2451.1,0.40786]
[1726796407728,3.18,2451.2,2451.0,0.3901]
[1726796407935,3.18,2451.2,2450.9,3.61569]
[1726796408125,0.4045,2451.1,2450.9,0.4079]
[1726796408431,0.4062,2451.0,2450.9,0.4079]
[1726796408740,0.8135,2451.0,2450.9,0.4079]
[1726796410333,0.8135,2451.0,2450.8,0.83531]
[1726796412330,3.9935,2451.0,2450.6,4.80449835]
[1726796412531,3.9935,2451.0,2450.6,3.2078]
[1726796412532,3.18,2450.7,2450.6,3.2078]
[1726796412837,3.18,2450.7,2450.4,0.81239]
[1726796412838,3.58794,2450.7,2450.4,0.81239]
[1726796413041,3.18,2450.5,2450.4,0.4044]
[1726796413546,3.5706,2450.5,2450.4,0.4044]
[1726796414940,3.5706,2450.5,2450.4,0.81239]
[1726796415534,3.5706,2450.5,2450.4,0.4044]
[1726796417435,3.5706,2450.5,2450.4,2.30223789]
[1726796418336,3.5706,2450.5,2450.4,2.71022789]
[1726796418641,0.3906,2450.5,2450.4,2.71022789]
[1726796418837,0.3906,2450.5,2450.4,4.31435112]
[1726796419044,4.00012,2450.9,2450.6,0.40795]
[1726796420533,4.00012,2450.9,2450.5,4.81192323]
[1726796420534,3.5922,2450.9,2450.5,4.81192323]
[1726796420739,0.838,2451.0,2450.8,0.40792]
[1726796421040,0.838,2451.0,2450.7,1.60412323]
[1726796421041,0.838,2451.0,2450.9,0.81961]
[1726796421639,0.4258,2451.4,2450.9,2.30979288]
[1726796421833,0.3892,2451.2,2451.1,2.01198323]
[1726796422037,0.3892,2451.2,2451.1,3.50221611]
[1726796422236,0.3892,2451.2,2451.0,1.60412323]
[1726796422443,3.18,2451.1,2450.9,5.63151323]
[1726796422644,3.18,2451.1,2451.0,2.30608829]
[1726796422840,3.18,2451.1,2451.0,3.91021152]
[1726796423039,3.18,2451.1,2451.0,3.50232152]
[1726796423246,3.18,2451.1,2451.0,1.89819829]
[1726796423746,0.3892,2451.2,2451.0,3.91021152]
[1726796424043,0.3892,2451.2,2451.0,1.60412323]
[1726796425050,0.3892,2451.2,2451.0,2.01201323]
[1726796426046,0.3892,2451.2,2451.1,0.40787]
[1726796426542,3.5735,2451.5,2451.1,3.50217803]
[1726796426747,0.4055,2451.4,2451.3,0.40784]
[1726796427051,0.4055,2451.4,2451.2,0.40785]
[1726796427550,0.4055,2451.4,2451.3,0.4205]
[1726796428050,0.4055,2451.4,2451.1,2.01199323]
[1726796429452,0.4055,2451.4,2451.2,0.40785]
[1726796432250,0.4055,2451.4,2451.3,0.40784]
[1726796433448,0.4055,2451.4,2451.2,0.40785]
[1726796435159,0.4055,2451.4,2451.3,0.40784]
[1726796438156,0.4055,2451.4,2451.2,0.40784]
[1726796438457,0.4055,2451.4,2451.2,0.40786]
[1726796438957,0.4055,2451.4,2451.3,0.40784]
[1726796444852,0.4055,2451.4,2451.3,3.91305083]
[1726796446057,1.8755,2451.4,2451.3,3.91305083]
[1726796446361,1.8755,2451.4,2451.3,3.91316874]
[1726796446858,1.8755,2451.4,2451.3,3.50532874]
[1726796447256,1.8755,2451.4,2451.3,3.91316874]
[1726796448661,1.8755,2451.4,2451.3,3.50532874]
[1726796448867,1.8755,2451.4,2451.3,3.91316874]
[1726796449054,5.9547,2451.4,2451.3,3.50532874]
[1726796449261,5.09881,2451.3,2450.9,4.79009505]
[1726796449563,1.47,2451.0,2450.7,0.40793]
[1726796449758,1.47,2451.0,2450.8,1.90061726]
[1726796449956,0.3986,2450.9,2450.7,2.53686113]
[1726796450255,0.3986,2450.9,2450.8,1.89525574]
[1726796450458,0.3986,2450.9,2450.7,0.40793]
[1726796451660,0.3986,2450.9,2450.6,4.02425]
[1726796451857,0.3986,2450.9,2450.7,1.894]
[1726796452059,0.3986,2450.9,2450.7,0.40794]
[1726796456068,0.3986,2450.9,2450.6,0.4085]
[1726796456266,0.3986,2450.9,2450.7,0.40794]
[1726796459780,0.3986,2450.9,2450.8,0.40792]
[1726796461175,0.3986,2450.9,2450.7,0.40793]
[1726796461671,0.3986,2450.9,2450.8,0.40792]
[1726796462378,0.4263,2451.0,2450.9,0.40791]
[1726796462578,0.3986,2451.2,2451.0,0.40788]
[1726796462776,0.3986,2451.2,2451.1,0.4114]
[1726796470781,0.3986,2451.2,2450.9,0.8362]
[1726796470782,1.19727,2451.2,2450.9,1.635]
[1726796472580,0.7894,2451.2,2450.9,1.2271]
[1726796472779,0.3933,2451.7,2451.1,6.3878]
[1726796472994,3.2078,2452.0,2451.6,0.40779]
[1726796472995,3.61553,2452.0,2451.6,0.40779]
[1726796473175,0.8174,2451.9,2451.7,0.3909]
[1726796473484,0.8174,2451.9,2451.7,0.79867]
[1726796473688,3.18,2452.2,2451.7,3.5987]
[1726796473883,3.2078,2452.1,2451.8,1.21215]
[1726796474294,3.2078,2452.1,2451.8,0.8044]
[1726796474881,1.87772,2452.1,2451.8,0.8044]
[1726796475082,1.87772,2452.0,2451.8,0.8044]
[1726796475885,6.79551,2452.1,2451.8,0.8044]
[1726796476596,0.40772,2452.0,2451.8,0.8044]
[1726796476892,6.79551,2452.1,2451.8,0.8044]
[1726796477885,6.3878,2452.1,2451.7,0.3909]
[1726796478191,6.3878,2452.1,2451.4,3.2078]
[1726796478192,3.18,2451.9,2451.5,1.19339]
[1726796478394,0.4137,2451.8,2451.5,1.59429]
[1726796478582,3.58778,2451.7,2451.3,0.4234]
[1726796479287,3.58778,2451.7,2451.3,0.83124]
[1726796479693,3.18,2451.7,2451.3,0.83124]
[1726796479881,3.18,2451.7,2451.3,0.4234]
[1726796480280,0.8255,2451.8,2451.5,0.4078]
[1726796480490,0.8255,2451.8,2451.6,0.4079]
[1726796482895,0.8255,2451.8,2451.6,0.81569]
[1726796487793,0.8255,2451.8,2451.6,0.4079]
[1726796489493,0.8255,2451.8,2451.6,0.81569]
[1726796495992,2.2955,2451.8,2451.6,0.81569]
[1726796498190,4.121,2452.5,2451.9,0.40773]
[1726796498395,4.121,2452.5,2451.7,4.6778]
[1726796498396,0.8005,2452.4,2452.0,5.4774]
[1726796498604,2.2705,2452.4,2452.1,0.4097]
[1726796499307,2.2705,2452.4,2452.1,0.8174]
[1726796499490,0.8005,2452.4,2452.1,1.8797]
[1726796499690,0.4247,2452.6,2452.2,0.40768]
[1726796500094,1.22202,2452.7,2452.2,0.40768]
[1726796500295,3.6154,2452.8,2452.3,0.40767]
[1726796500500,0.4247,2452.6,2452.3,0.40767]
[1726796500694,0.4247,2452.6,2452.4,0.4276]
[1726796501200,3.18,2452.5,2452.1,0.4097]
[1726796501701,3.58764,2452.5,2452.1,0.4097]
[1726796502397,3.18,2452.5,2452.1,0.4097]
[1726796502600,3.58764,2452.5,2452.1,0.4097]
[1726796503196,3.2078,2452.2,2451.8,0.83535]
[1726796503505,4.0166,2452.1,2451.8,0.83535]
[1726796503704,0.8366,2452.1,2451.8,0.83535]
[1726796504509,0.8366,2452.1,2451.9,0.40774]
[1726796504807,0.4232,2452.1,2451.8,0.4276]
[1726796505004,0.4232,2452.1,2452.0,0.40772]
[1726796507304,1.24416,2452.4,2452.0,0.40772]
[1726796507504,0.4191,2452.3,2452.0,0.40772]
[1726796508810,3.5991,2452.3,2451.8,3.6354]
[1726796509005,0.4077,2452.2,2451.8,4.04315]
[1726796509307,0.40769,2452.2,2451.8,4.04315]
[1726796509704,3.5991,2452.3,2452.0,0.40771]
[1726796509705,0.4191,2452.3,2452.0,0.40771]
[1726796510899,0.4191,2452.3,2451.9,0.8064]
[1726796511107,0.4191,2452.3,2452.2,0.40769]
[1726796512006,0.4191,2452.3,2452.1,0.4077]
[1726796512705,0.4191,2452.3,2452.2,0.4101]
[1726796515309,0.4191,2452.3,2452.2,0.81779]
[1726796516109,0.4191,2452.3,2451.9,0.8064]
[1726796516110,0.82678,2452.3,2451.9,0.8064]
[1726796516408,0.82678,2452.3,2451.9,1.60662]
[1726796517014,0.82678,2452.3,2452.0,0.40772]
[1726796517219,0.82678,2452.3,2451.9,1.60663]
[1726796519414,0.82678,2452.3,2452.0,0.40772]
[1726796520414,0.4191,2452.3,2452.0,0.40772]
[1726796520608,0.82678,2452.3,2452.0,0.40772]
[1726796520809,0.4191,2452.3,2451.9,1.1989]
[1726796521116,0.4191,2452.3,2452.1,0.40769]
[1726796521618,0.4191,2452.3,2452.2,0.82609]
[1726796522415,3.2078,2452.6,2452.2,5.0962]
[1726796522717,4.121,2452.7,2452.5,0.40763]
[1726796523020,2.68858,2452.9,2452.6,0.4247]
[1726796523208,1.94524741,2452.8,2452.6,0.4247]
[1726796523407,1.94524741,2452.8,2452.3,1.20416]
[1726796523408,0.47526741,2452.7,2452.3,1.20416]
[1726796523609,1.53765741,2452.6,2452.3,1.62886]
[1726796523811,1.8822,2452.6,2452.4,0.40765]
[1726796525520,0.4122,2452.6,2452.4,0.40765]
[1726796526417,0.4122,2452.6,2452.5,0.40764]
[1726796526617,0.4122,2452.6,2452.4,0.40765]
[1726796527215,0.4076,2452.8,2452.4,0.40765]
[1726796527419,0.813,2452.8,2452.4,0.40765]
[1726796527808,0.4054,2452.8,2452.3,2.6912]
[1726796528016,1.47,2452.7,2452.3,1.2212]
[1726796528216,1.86,2452.6,2452.3,1.62886]
[1726796529623,0.4251,2452.5,2452.3,1.62886]
[1726796530921,0.4251,2452.5,2452.4,0.40766]
[1726796532621,0.4251,2452.5,2452.3,1.62887]
[1726796533324,0.4251,2452.5,2452.4,0.40766]
[1726796534628,0.4251,2452.5,2452.3,1.62887]
[1726796534923,0.4251,2452.5,2452.4,0.40766]
[1726796536133,0.4251,2452.5,2452.3,1.62886]
[1726796536333,0.4251,2452.5,2452.4,0.40766]
[1726796542439,5.48418,2452.9,2452.5,0.40764]
[1726796542739,0.8102,2452.9,2452.6,0.81271]
[1726796542939,0.8102,2452.9,2452.7,0.82181]
[1726796544844,0.8102,2452.9,2452.7,1.23971]
[1726796547343,0.06765106,2452.8,2452.7,1.23971]
[1726796548246,0.06765106,2452.8,2452.7,0.8321]
[1726796549244,1.53765106,2452.8,2452.6,0.4051]
[1726796549435,0.06765106,2452.7,2452.6,0.4051]
[1726796550743,2.2627,2452.8,2452.6,0.4051]
[1726796550939,0.06765633,2452.7,2452.6,0.4051]
[1726796553148,0.06765633,2452.7,2451.9,3.2078]
[1726796553149,0.40767,2452.4,2451.9,3.2078]
[1726796553354,1.47,2452.1,2452.0,0.4199]
[1726796553644,1.47,2452.2,2452.0,0.4199]
[1726796554156,1.62168,2452.3,2452.0,0.82762]
[1726796554350,1.214,2452.3,2452.0,0.82762]
[1726796554551,1.62168,2452.3,2452.0,0.4199]
[1726796555046,1.62168,2452.3,2452.0,0.82762]
[1726796555450,1.62168,2452.3,2452.0,0.4199]
[1726796556241,0.8236,2452.3,2452.0,0.4199]
[1726796556448,0.40765,2452.5,2452.1,0.4077]
[1726796557340,0.40766,2452.4,2452.0,0.82761]
[1726796557548,1.87766,2452.4,2452.0,0.82761]
[1726796558167,1.47,2452.4,2452.1,0.4077]
[1726796558356,1.87766,2452.4,2452.0,0.82762]
[1726796558866,0.4188,2452.3,2452.1,0.4077]
[1726796561067,0.4188,2452.3,2452.0,1.8899]
[1726796561772,0.4188,2452.3,2452.1,0.4077]
[1726796562662,0.4188,2452.3,2452.0,1.8899]
[1726796563262,0.4188,2452.3,2452.1,0.4077]
[1726796564966,0.82649,2452.3,2452.0,0.4199]
[1726796565170,0.8062,2452.2,2452.0,0.4199]
[1726796565860,0.8062,2452.2,2452.0,0.82762]
[1726796566171,0.8062,2452.2,2452.0,0.4199]
[1726796566372,0.8062,2452.2,2452.0,0.82762]
[1726796566973,0.8062,2452.2,2452.0,0.4199]
[1726796567167,0.8062,2452.2,2452.0,0.82762]
[1726796567366,0.8062,2452.2,2452.0,0.4199]
[1726796568871,2.2762,2452.2,2452.0,0.4199]
[1726796569270,0.8062,2452.2,2452.0,0.4199]
[1726796570175,0.8062,2452.2,2452.0,0.82762]
[1726796570573,0.8062,2452.2,2452.0,0.4199]
[1726796571372,0.8062,2452.2,2452.0,0.82762]
[1726796571767,0.3872,2452.2,2452.1,0.40771]
[1726796572375,0.3872,2452.2,2452.0,0.82761]
[1726796573379,0.3872,2452.2,2452.1,0.40771]
[1726796574269,0.3872,2452.2,2452.0,0.82761]
[1726796575484,0.3872,2452.2,2452.1,0.40771]
[1726796575679,0.3872,2452.2,2452.0,0.4199]
[1726796575680,0.3872,2452.2,2452.0,0.82761]
[1726796576582,0.4188,2452.3,2452.1,0.40771]
[1726796576776,0.4188,2452.3,2452.1,0.79691]
[1726796578381,0.4188,2452.3,2452.1,0.7969]
[1726796580378,4.34519249,2452.7,2452.4,0.40765]
[1726796580379,0.40761,2452.7,2452.4,0.40765]
[1726796580581,0.80662,2452.7,2452.5,0.4086]
[1726796580783,0.80662,2452.7,2452.5,0.8322]
[1726796581481,0.399,2452.7,2452.5,0.8322]
[1726796581678,0.399,2452.7,2452.5,2.3022]
[1726796581879,0.399,2452.7,2452.5,2.70983]
[1726796582280,0.40755,2453.1,2452.7,0.40761]
[1726796582482,0.06764902,2453.0,2452.7,0.40761]
[1726796582685,0.47520902,2453.0,2452.7,0.40761]
[1726796582884,1.20305,2453.1,2452.7,0.40761]
[1726796583195,0.06765014,2453.0,2452.7,0.40761]
[1726796583791,0.06765014,2453.0,2452.6,0.79602]
[1726796584790,2.67304,2453.1,2452.6,0.79602]
[1726796585085,0.7955,2453.1,2452.8,0.40758]
[1726796585303,7.3288,2453.6,2453.0,0.40755]
[1726796585484,0.795,2453.5,2453.2,1.47]
[1726796585890,0.4062,2453.5,2453.4,0.40749]
[1726796586086,0.3888,2453.8,2453.3,4.6778]
[1726796586287,0.3888,2453.8,2453.6,0.40745]
[1726796586499,0.3888,2453.8,2453.5,1.47]
[1726796586696,0.3888,2453.8,2453.6,0.8341]
[1726796586887,0.3888,2453.8,2453.6,1.2195]
[1726796587283,0.4062,2453.9,2453.6,1.2195]
[1726796588184,0.4062,2453.9,2453.6,1.62695]
[1726796588491,3.614,2453.9,2453.6,1.62695]
[1726796588682,0.4062,2453.9,2453.6,1.62695]
[1726796589291,0.81361,2453.9,2453.6,1.2195]
[1726796589899,0.4062,2453.9,2453.6,1.2195]
[1726796591599,0.81361,2453.9,2453.6,1.2195]
[1726796591893,4.02141,2453.9,2453.6,1.2195]
[1726796592089,0.4062,2453.9,2453.6,0.4192]
[1726796592284,3.614,2453.9,2453.3,3.5964]
[1726796592593,3.614,2453.9,2453.3,0.3886]
[1726796592594,0.40746,2453.6,2453.3,0.3886]
[1726796592795,0.4151,2453.5,2453.3,0.3886]
[1726796593095,0.3899,2453.4,2453.3,0.3886]
[1726796593286,0.3899,2453.4,2453.2,0.4111]
[1726796593686,0.3899,2453.4,2453.2,0.81862]
[1726796593892,0.4151,2453.5,2453.3,0.40751]
[1726796594098,0.4151,2453.5,2453.3,0.81861]
[1726796595100,0.4151,2453.5,2453.3,0.4111]
[1726796595289,0.4151,2453.5,2453.2,0.4111]
[1726796595793,0.82258,2453.5,2453.2,0.4111]
[1726796596183,0.4151,2453.5,2453.2,0.4111]
[1726796596497,0.82258,2453.5,2453.2,0.4111]
[1726796597792,0.4151,2453.5,2453.2,0.81862]
[1726796597994,0.4151,2453.5,2453.2,0.4111]
[1726796598193,0.4151,2453.5,2453.3,0.8134]
[1726796600297,0.4151,2453.5,2453.3,0.4059]
[1726796600601,0.4151,2453.5,2453.2,0.4111]
[1726796600895,0.4151,2453.5,2453.2,0.81862]
[1726796601702,0.4151,2453.5,2453.3,0.4075]
[1726796601900,0.4151,2453.5,2453.2,3.5911]
[1726796602197,0.3899,2453.7,2453.4,0.40748]
[1726796602397,0.3899,2453.7,2453.5,0.4155]
[1726796602894,0.3899,2453.7,2453.6,0.391]
[1726796612304,0.3899,2453.7,2453.2,3.2078]
[1726796612499,0.40748,2453.5,2453.1,1.47]
[1726796612804,0.40748,2453.5,2453.1,1.87753]
[1726796613002,0.4073,2453.4,2453.1,1.87753]
[1726796613904,0.4073,2453.4,2453.1,0.40753]
[1726796614401,0.4073,2453.4,2453.2,0.40751]
[1726796614600,0.4073,2453.4,2453.3,0.40751]
[1726796615303,0.4073,2453.4,2453.2,0.40752]
[1726796615808,0.4073,2453.4,2453.1,3.61533]
[1726796616003,0.4194,2453.3,2453.1,3.61533]
[1726796618906,0.4194,2453.3,2453.1,0.40753]
[1726796619099,0.40753,2453.2,2453.0,0.7836]
[1726796619305,0.40752,2453.2,2453.0,0.7836]
[1726796619718,0.82692,2453.3,2453.0,0.7836]
[1726796620012,0.82692,2453.3,2453.0,1.19115]
[1726796622814,0.82692,2453.3,2453.0,0.7836]
[1726796623921,0.82692,2453.3,2452.8,0.3944]
[1726796623922,3.18,2453.2,2452.8,0.3944]
[1726796624210,3.18,2453.2,2452.5,3.2078]
[1726796624211,0.40759,2452.8,2452.7,0.8294]
[1726796624402,0.40759,2452.8,2452.7,0.4092]
[1726796625003,0.80399,2452.9,2452.7,0.4092]
[1726796625409,0.40761,2452.7,2452.5,3.2078]
[1726796625615,0.3964,2452.9,2452.4,0.8222]
[1726796625616,0.80343,2452.6,2452.4,0.8222]
[1726796625810,0.3958,2452.6,2452.4,0.8222]
[1726796627109,0.40762,2452.7,2452.4,0.8222]
[1726796627613,3.61542,2452.7,2452.4,0.8222]
[1726796627814,0.40762,2452.7,2452.4,0.8222]
[1726796628014,3.61542,2452.7,2452.4,0.8222]
[1726796628408,0.40762,2452.7,2452.4,0.8222]
[1726796631819,3.61542,2452.7,2452.4,0.8222]
[1726796632215,0.40762,2452.7,2452.4,0.8222]
[1726796632520,4.01178,2452.9,2452.5,0.40763]
[1726796632716,0.4058,2452.8,2452.5,0.40763]
[1726796632912,0.81339,2452.8,2452.5,0.40763]
[1726796633106,0.81339,2452.8,2452.4,4.40984]
[1726796636212,0.81339,2452.8,2452.5,0.40764]
[1726796637215,3.32762754,2453.2,2452.6,3.18]
[1726796637415,3.2078,2453.2,2452.7,0.8062]
[1726796637611,0.40755,2453.1,2452.8,0.3973]
[1726796637815,0.40755,2453.1,2452.8,0.8104]
[1726796638516,3.2078,2453.2,2452.8,0.8104]
[1726796638517,0.40756,2453.0,2452.8,0.8104]
[1726796638711,0.40757,2452.9,2452.6,1.47]
[1726796638916,0.40759,2452.8,2452.6,0.4267]
[1726796639223,1.57738,2452.9,2452.6,0.4267]
[1726796639717,1.1698,2452.9,2452.6,0.4267]
[1726796640017,4.3776,2452.9,2452.6,0.4267]
[1726796640415,0.4076,2452.8,2452.6,0.4267]
[1726796641419,0.40761,2452.7,2452.6,0.4267]
[1726796641722,0.40763,2452.6,2452.3,0.40767]
[1726796642026,0.3923,2452.5,2452.4,0.3999]
[1726796642323,0.79994,2452.5,2452.4,0.3999]
[1726796642524,1.20214,2452.5,2452.4,0.3999]
[1726796642731,0.7945,2452.5,2452.4,0.3999]
[1726796643227,1.20214,2452.5,2452.4,0.3999]
[1726796643528,0.7945,2452.5,2452.1,3.2078]
[1726796643720,0.40768,2452.3,2452.1,3.2078]
[1726796644330,0.40769,2452.2,2452.1,3.2078]
[1726796648825,0.40772,2452.1,2451.9,1.204]
[1726796649119,1.23861,2452.1,2451.9,1.204]
[1726796649932,0.8309,2452.1,2451.9,1.204]
[1726796650633,3.71357138,2452.4,2451.9,1.61173]
[1726796650634,0.40768,2452.3,2451.9,1.61173]
[1726796651434,1.2429,2452.4,2451.9,1.204]
[1726796651634,0.40768,2452.3,2451.9,1.61174]
[1726796651837,4.22685,2452.7,2452.0,3.18]
[1726796652129,0.40766,2452.4,2452.0,3.58771]
[1726796653432,0.40765,2452.5,2452.1,0.4077]
[1726796655137,1.23393,2452.6,2452.2,0.40768]
[1726796655328,0.8263,2452.6,2452.3,1.63037]
[1726796655521,0.40762,2452.7,2452.3,1.63037]
[1726796656025,0.40762,2452.6,2452.3,1.63037]
[1726796656427,0.40762,2452.6,2452.3,1.2227]
[1726796656624,0.3944,2452.5,2452.3,1.2227]
[1726796657337,0.80205,2452.5,2452.3,1.2227]
[1726796657634,0.80205,2452.5,2452.3,0.4027]
[1726796657635,0.7843,2452.5,2452.3,0.4027]
[1726796657834,0.40766,2452.4,2452.3,0.4027]
[1726796658430,0.40768,2452.3,2452.1,3.2078]
[1726796660130,0.40768,2452.3,2451.9,1.24103]
[1726796661938,0.40768,2452.3,2452.0,0.40772]
[1726796662132,0.40768,2452.3,2451.9,1.24103]
[1726796662333,0.3944,2452.5,2452.2,3.18]
[1726796662529,3.61544,2452.6,2452.3,1.2356]
[1726796662741,0.40764,2452.6,2452.3,1.2356]
[1726796663731,3.983,2452.7,2452.3,1.2356]
[1726796664043,0.40766,2452.4,2452.3,0.4039]
[1726796664737,0.40766,2452.4,2452.1,0.4153]
[1726796664937,0.8499,2452.3,2452.1,0.8295]
[1726796665243,0.40769,2452.2,2452.1,0.8295]
[1726796665442,0.40769,2452.2,2451.8,0.79415]
[1726796665631,0.40769,2452.2,2451.9,0.4142]
[1726796666037,0.40771,2452.1,2451.9,0.4142]
[1726796667037,4.4226,2452.3,2451.6,4.27358978]
[1726796667038,0.40775,2451.9,2451.6,3.2078]